Cogmind - Beta 11 *** ADVENTURER MODE // 2022.03.22 @ 02:05:28 Player: Toastemeister Result: Destroyed by as-96786 with Assembled Heavy Rifle Performance ------------- Evolutions (0) 0 Regions Visited (2) 400 Robots Destroyed (16) 80 Value Destroyed (364) 364 Prototype IDs (2) 40 Alien Tech Used (0) 0 Bonus (0) 0 TOTAL SCORE: 884 Bonus ------- None Cogmind --------- Core Integrity 0/250 Matter 183/300 Energy 100/100 System Corruption 0% Temperature Cool (0) Movement Core (250) Ox4 Location -10/Mines Parts ------- > --- POWER (1) -------- (None) > --- PROPULSION (2) --- (None) > --- UTILITY (2) ------ Medium Storage Unit > --- WEAPON (2) ------- Shotgun > --- INVENTORY (10) --- Medium Laser Peak State ------------ > --- POWER ------------ Light Ion Engine > --- PROPULSION ------- Light Treads Light Treads > --- UTILITY ---------- Medium Storage Unit Light Armor Plating > --- WEAPON ----------- Shotgun Grenade Launcher > --- INVENTORY -------- Medium Laser [Rating: 8] Favorites ----------- Power Light Ion Engine Engine Light Ion Engine Propulsion Light Treads Treads Light Treads Flight Unit Flight Unit Utility Medium Storage Unit Storage Medium Storage Unit Protection Light Armor Plating Weapon Medium Laser Energy Gun Medium Laser Ballistic Gun Shotgun Launcher Grenade Launcher Build | -11 -10 -10 ------- Run | Scr Mat Min Slots Evolved . | . . . Power . | . . . Propulsion . | . . . Utility . | . . . Weapon . | . . . Parts Attached 20 | 5 13 2 Power 1 | 1 . . Engine 1 | 1 . . Core . | . . . Reactor . | . . . Propulsion 6 | 2 4 . Treads 4 | 2 2 . Leg . | . . . Wheel . | . . . Hover . | . . . Flight 2 | . 2 . Utility 6 | 1 5 . Device . | . . . Storage 5 | 1 4 . Processor . | . . . Hackware . | . . . Protection 1 | . 1 . Artifact . | . . . Weapon 7 | 1 4 2 Energy Gun 2 | 1 1 . Energy Cannon . | . . . Ballistic Gun 2 | . 1 1 Ballistic Cannon . | . . . Launcher 3 | . 2 1 Special Weapon . | . . . Impact Weapon . | . . . Slashing Weapon . | . . . Piercing Weapon . | . . . Special Melee Weapon . | . . . Unidentified Prototypes . | . . . Parts Lost 5 | . . 5 Power 1 | . . 1 Propulsion 2 | . . 2 Utility 1 | . . 1 Weapon 1 | . . 1 Highest Loss Streak 5 | . . 5 To Critical Strikes . | . . . Average Slot Usage (%) 96 | . 98 86 Engine 13 | . 14 10 Treads 25 | . 25 24 Flight 1 | . 2 . Storage 15 | . 15 14 Protection 11 | . 11 10 Energy Gun 13 | . 13 10 Ballistic Gun 2 | . . 11 Launcher 11 | . 13 3 Naked Turns . | . . . Heaviest Build 168 | 10 168 21 Greatest Support 40 | 40 40 40 Greatest Overweight (x) 4 | . 4 4 Average Overweight (x) . | . . . Largest Inventory Capacity 25 | 8 25 10 Average Capacity 10 | 7 11 10 Most Carried 6 | 5 6 1 Average Carried 1 | 1 1 1 Final Capacity 10 | 8 10 10 Final Carried 1 | 1 1 1 Class Distribution -------------------- 100% | Mutant Dominant Class ---------------- Mutant | -10/Materials Mutant | -10/Mines Resources | -11 -10 -10 ----------- Run | Scr Mat Min Matter Collected 342 | 250 69 23 Remotely . | . . . Salvage Created 340 | . 231 109 Parts 28 | . 21 7 Haulers Intercepted . | . . . Recyclers Shooed 1 | . 1 . Parts Field Recycled . | . . . Retrieved Matter . | . . . Parts Self-Destructed . | . . . Prevented . | . . . Kills | -11 -10 -10 ------- Run | Scr Mat Min Combat Hostiles Destroyed 13 | . 7 6 Guns 6 | . 2 4 AOE 7 | . 5 2 Classes Destroyed 7 | . 5 2 Worker 1 | . 1 . Builder 1 | . 1 . Recycler 2 | . 1 1 Watcher 2 | . 2 . Swarmer 3 | . . 3 Grunt 7 | . 7 . Assembled 3 | . . 3 Best Kill Streak 4 | . 4 4 Combat Bots Only 3 | . 3 3 Max Kills in Single Turn 4 | . 2 4 Gunslinging . | . . . Exploded 2 | . 1 2 Melee . | . . . Uniques/NPCs Destroyed . | . . . Combat | -11 -10 -10 -------- Run | Scr Mat Min Damage Taken 941 | . 198 743 Core 263 | . 32 231 Absorbed by Shields . | . . . Core Remaining (%) 100 | 100 . . Volleys Fired 25 | . 20 5 Largest 2 | . 2 2 Hottest 80 | . 80 73 Shots Fired 45 | . 36 9 Gun 30 | . 22 8 Cannon . | . . . Launcher 15 | . 14 1 Special . | . . . Kinetic 8 | . 3 5 Thermal 22 | . 19 3 Explosive 15 | . 14 1 Electromagnetic . | . . . Robot Hit Streak 18 | . 18 8 Robot Miss Streak 1 | . 1 1 Penetration Max . | . . . Secondary Targets 1 | . 1 . Max Gunslinging Chain 1 | . 1 . Shots Hit Robots 35 | . 28 7 Core Hits 30 | . 21 9 Critical Kills . | . . . Critical Parts Destroyed . | . . . Critical Strikes 1 | . . 1 Burn 1 | . . 1 Melee Attacks . | . . . Impact . | . . . Slashing . | . . . Piercing . | . . . Sneak Attacks . | . . . Combat Hostiles . | . . . Follow-up Attacks . | . . . Damage Inflicted 1362 | . 1054 308 Guns 314 | . 231 83 Cannons . | . . . Explosions 1048 | . 823 225 Melee . | . . . Ramming . | . . . Kinetic 89 | . 43 46 Thermal 225 | . 188 37 Explosive 1048 | . 823 225 Electromagnetic . | . . . Impact . | . . . Slashing . | . . . Piercing . | . . . Highest Corruption . | . . . Average Corruption . | . . . Corruption Purged . | . . . Corruption Blocked . | . . . Overload Shots . | . . . Overflow Damage 13 | . 5 8 Projectiles . | . . . Explosions 13 | . 5 8 Melee . | . . . Knockbacks . | . . . Impact . | . . . Kinetic . | . . . Secondary . | . . . Self-Inflicted Damage 51 | . 31 20 Shots 3 | . 2 1 Rammed . | . . . Targets Rammed . | . . . Kicked . | . . . Crushed . | . . . Highest Temperature 260 | . 260 63 Average Temperature 67 | . 74 28 Received Heat Transfer 181 | . 141 40 Siege Activations . | . . . Robots Corrupted . | . . . Combat Hostiles . | . . . Parts Fried 1 | . . 1 Impact Corruptions . | . . . Robots Melted . | . . . Combat Hostiles . | . . . Parts Melted 1 | . . 1 Heat Transferred 740 | . 555 185 Parts Sabotaged . | . . . Parts Stolen . | . . . Parts Stripped . | . . . Power Chain Reactions . | . . . Missiles Intercepted . | . . . Alert | -11 -10 -10 ------- Run | Scr Mat Min Peak Influence 259 | . 259 177 Initial 85 | . . 85 Average 74 | . 70 138 Maximum Alert Level 1 | . 1 . Low Security (%) 93 | 100 91 100 Level 1 6 | . 8 . Level 2 . | . . . Level 3 . | . . . Level 4 . | . . . Level 5 . | . . . High Security . | . . . Max Security . | . . . Squads Dispatched 1 | . 1 . Investigation 1 | . 1 . Extermination . | . . . Reinforcement . | . . . Assault . | . . . Garrison . | . . . Intercept . | . . . Searches Triggered . | . . . Construction Impeded . | . . . Haulers Reinforced . | . . . Active Scanning Responses . | . . . Cargo Convoy Interrupts . | . . . Stealth | -11 -10 -10 --------- Run | Scr Mat Min Distress Signals . | . . . Communications Jammed . | . . . Distress Signals . | . . . Times Spotted 31 | . 10 21 Peak Tracking Total 12 | . 2 12 Tactical Retreats 1 | . . 1 Traps | -11 -10 -10 ------- Run | Scr Mat Min Traps Triggered 1 | . 1 . Indirectly . | . . . Trap Hack Attempts . | . . . Triggered . | . . . Disarmed . | . . . Reprogrammed . | . . . Reused . | . . . Traps Extracted . | . . . Installed . | . . . Triggered . | . . . Machines | -11 -10 -10 ---------- Run | Scr Mat Min Machines Disabled 3 | . 3 . Max in Single Turn 2 | . 2 . Machines Sabotaged . | . . . Garrisons Compromised . | . . . Overloaded Fab Kills . | . . . Hacking | -11 -10 -10 --------- Run | Scr Mat Min Machines Accessed 4 | . 4 . Terminals 2 | . 2 . Fabricators . | . . . Repair Stations 1 | . 1 . Recycling Units 1 | . 1 . Scanalyzers . | . . . Garrison Access . | . . . Total Hacks 16 | . 16 . Successful 16 | . 16 . Failed . | . . . Catastrophic . | . . . Database Lockouts . | . . . Manual . | . . . Terminals 9 | . 9 . Fabricators . | . . . Repair Stations 1 | . 1 . Recycling Units 6 | . 6 . Scanalyzers . | . . . Garrison Access . | . . . Terminal Hacks 9 | . 9 . Record 4 | . 4 . Prototype ID Bank 1 | . 1 . Emergency Access Points 1 | . 1 . Alert Level 1 | . 1 . Locate Traps 1 | . 1 . Zone Layout 1 | . 1 . Fabricator Hacks . | . . . Repair Station Hacks 1 | . 1 . Scan Component 1 | . 1 . Recycling Unit Hacks 6 | . 6 . Recycle Component 3 | . 3 . Process 2 | . 2 . Retrieve Matter 1 | . 1 . Scanalyzer . | . . . Garrison Access Hacks . | . . . Unauthorized Hacks . | . . . Terminals . | . . . Fabricators . | . . . Repair Stations . | . . . Recycling Units . | . . . Scanalyzers . | . . . Garrison Access . | . . . Data Cores Recovered . | . . . Used . | . . . Hacking Detections 3 | . 3 . Full Trace Events . | . . . Feedback Events . | . . . Feedback Blocked . | . . . Robot Schematics Acquired . | . . . Robots Built . | . . . Authchips . | . . . Time . | . . . Total Robot Build Rating . | . . . Part Schematics Acquired . | . . . Parts Built . | . . . Authchips . | . . . Time . | . . . Total Part Build Rating . | . . . Parts Repaired . | . . . Time . | . . . Parts Recycled 3 | . 3 . Recycled Matter 911 | . 911 . Retrieved Matter 891 | . 891 . Retrieved Components . | . . . Parts Scanalyzed . | . . . Part Schematics Acquired . | . . . Parts Damaged . | . . . Bothacking | -11 -10 -10 ------------ Run | Scr Mat Min Used RIF Installer . | . . . Robots Hacked . | . . . Non-combat . | . . . Combat . | . . . Robot Hacks Applied . | . . . Relay Couplers Released . | . . . Fabnet Peak Effective % . | . . . Robots Rewired . | . . . Allies Hacked . | . . . Hacks Repelled . | . . . Allies | -11 -10 -10 -------- Run | Scr Mat Min Total Allies . | . . . Largest Group . | . . . Highest-Rated Group . | . . . Highest-Rated Ally . | . . . Total Orders . | . . . Ally Attacks . | . . . Total Damage . | . . . Kills . | . . . Allies Corrupted . | . . . Allies Melted . | . . . Intel | -11 -10 -10 ------- Run | Scr Mat Min Robot Analysis Total . | . . . Derelict Logs Recovered . | . . . Drone Launches . | . . . Drone Recoveries . | . . . Exploration | -11 -10 -10 ------------- Run | Scr Mat Min Turns Passed 852 | 63 673 116 Spaces Moved 452 | 50 342 60 Core 27 | 24 . 3 Treads 401 | 26 318 57 Legs . | . . . Wheels . | . . . Hover . | . . . Flight 24 | . 24 . Fastest Speed 50 | 50 160 160 Average Speed 163 | 107 171 164 Slowest Speed 480 | 160 480 250 Overloaded Moves . | . . . Propulsion Burnouts . | . . . Robots Hopped . | . . . Cave-ins Triggered . | . . . Exploration Rate (%) 28 | 4 62 18 Regions Visited 2 Branch Regions 1 Pre-discovered Areas . | . . . Known Exits Taken . | . . . Unknown Exits Taken 2 | 1 1 . Scrap Searched . | . . . Spaces Dug . | . . . Terrain Destroyed 79 | . 70 9 Melee . | . . . Projectile . | . . . AOE 79 | . 70 9 Terrain Rammed . | . . . Walls Destroyed . | . . . Machines Disabled . | . . . Actions | -11 -10 -10 --------- Run | Scr Mat Min Total 522 | 60 395 67 Wait . | . . . Move 450 | 49 341 60 Hop . | . . . Pick Up 17 | 6 11 . Fast Attach . | . . . Attach 12 | 5 7 . Detach 4 | . 4 . Swap 8 | . 6 2 Drop 6 | . 6 . Fire 25 | . 20 5 Melee . | . . . Ram . | . . . Kick . | . . . Crush . | . . . Escape Stasis . | . . . Rewire . | . . . Trap . | . . . Miscellaneous . | . . . Route ------- -11/Scrapyard -10/Materials -10/Mines (discovered 1 exit: [*Mat]) History --------- Turn | Location | Event 2 | -11/Scrapyard | Discovered new exit (range 16) 64 | -11/Scrapyard | Entered Materials 240 | -10/Materials | Discovered new exit (range 15) 311 | -10/Materials | Build established: Mutant 737 | -10/Materials | Entered Mines 757 | -10/Mines | Discovered new exit (range 8) 794 | -10/Mines | Assembled infested the area 799 | -10/Mines | Assisted by a Guerilla fighting off Assembled 847 | -10/Mines | Core integrity fell below 50% 850 | -10/Mines | Core integrity fell below 20% 853 | -10/Mines | Destroyed by as-96786 with Assembled Heavy Rifle Last Messages --------------- as-88482 suffers critical hit (Destroy). as-88482 destroyed. as-85579 destroyed. Destroyed Asb. F-torch. as-86467 destroyed. Com. Wheel fried. R-06 Scavenger destroyed. as-43903 destroyed. Lgt. Armor Plating destroyed. Lgt. Ion Engine destroyed. as-83239 destroyed. Lgt. Treads destroyed. U-05 Engineer destroyed. Grenade Launcher destroyed. U-05 Engineer destroyed. Lgt. Treads destroyed. as-27443 destroyed. S-10 Pest destroyed. Knocked back. S-10 Pest destroyed. Map ----- +----------------------------------------------------+ | ?????????????????????????????????????????????????? | | ?????????????????????????????????????????????????? | | ?????????????????????????????????????????????????? | | ?????????????????????????????????????????????????? | | ?????????????????????????????????????????????????? | | ?????????????????????????????????????????????????? | | ?????????????????????????????????????????????????? | | ?????????????????????????????????????????????????? | | ?????????????????????????????????????????????????? | | ?????????????????????????????????????????????????? | | ???????????????????????#?????????????????????????? | | ??????????????????????? ##???????????????????????? | | ??????????????????????? ???????????????????????? | | ???????????????????????] ???????????????????????? | | ??????????????????????? ???????????????????????? | | ?????????????????????## ????????????????????????? | | ?????????????????????#! ????????????????????????? | | ????????????????????? ????????????????????????? | | ?????#??????????????? ????????????????????????? | | ???? ????????????????# #????????????????????????? | | ### #????????????????# #????????????????????????? | | # #????????????????# #????????????????????????? | | ?????????????????# #????????????????????????? | | #???????####???????# #????#???????????????????? | | #???????? #????#### ### #???????????????????? | | #????????# ###### a @ #???????????????????? | | #??????###!# ## ######???????????????????? | | ########## %[= |%* = ##????????????????????????? | | ==! %aaa%a[%=#?????????????????????????? | | ###### ### %a ##a % * #????????????????????????? | | ###### ### % ### = #????????????????????????? | | # #?# """" #????????????????????????? | | # ##?## """" #????????????????????????? | | # #???# """" ???????????????????????? | | # % ####???# ??????????????????????? | | # < #??????## ? ##?????????????????????? | | # #????????# #??????????????????????? | | # % #?????????# ##??????????????????????? | | # #?????????? ?###???????????????????????? | | # #???????????#??????????????????????????? | | # " " #??????????????????????????????????????? | | # """ " #??????????????????????????????????????? | | # """%""" #??????????????????????????????????????? | | # #??????????????????????????????????????? | | ?? #??????????????????????????????????????? | | ? #??????????????????????????????????????? | | ?#####??###??????????????????????????????????????? | | ?????????????????????????????????????????????????? | | ?????????????????????????????????????????????????? | | ?????????????????????????????????????????????????? | +----------------------------------------------------+ Best States ------------- Heat Dissipation 25 Energy Generation 10 Energy Capacity 125 Matter Stores 300 Matter Capacity 300 Sight Range 16 Terrain Scan Density 10 Armor Coverage 150 Resistance: KI 20 Resistance: TH 20 Resistance: EX 20 Resistance: EM 20 Resistance: I 20 Resistance: S 20 Resistance: P 20 Evasion (%) 50 Recoil Reduction 2 Offensive Hacking 10 Item Schematics ----------------- None Robot Schematics ------------------ None Fabricated ------------ Nothing Alien Tech Used ----------------- None Achievements -------------- Tank Challenges ------------ None Game ------ Seed LongswordTrackerMace Manual? 0 Play Time 00:24:58 Cumulative 7.9 hours Start 2022.03.22 @ 01:39:24 End 2022.03.22 @ 02:05:28 Sessions 1 Manual Loads 0 Difficulty Adventurer Special Mode None Game No. 7 Rogue 1 Adventurer 6 Explorer 0 Win Type - Total 0 Types 0/0/0/0/0/0/0/0/0 Lore% 11 Gallery% 12 Achievement% 10 Wizard Run 0 Options --------- ASCII 0 Keyboard 0 Movement Mouse Keybinds 0 Fullscreen 2 Font 24/Smallcaps Map View 183x50 Tactical HUD 0 Map Filters NONE Filters NONE Steam 1 RUN: ffe222ba-de24-4983-890d-ffaf78ecb819